[Event "CZE-tht Extraliga 2018-19"]
[Site "Czech Republic"]
[Date "2019.02.10"]
[Round "8.5"]
[White "Kanovsky, David"]
[Black "Jirovsky, Milos"]
[Result "1-0"]
[ECO "B01"]
[WhiteElo "2424"]
[BlackElo "2455"]
[Annotator "ChessBase"]
[PlyCount "121"]
[EventDate "2018.11.03"]
[EventType "team-tourn"]
[EventCountry "CZE"]
[SourceTitle "playchess.com"]
[Source "ChessBase"]
[SourceQuality "1"]
[WhiteTeam "Poruba"]
[BlackTeam "Pardubice"]
[TimeControl "40/5400+30:1800+30"]

1. e4 {[%emt 0:00:00]} d5 {[%emt 0:00:00]} 2. exd5 {[%emt 0:00:00]} Qxd5 {[%emt 0:00:00]} 3. Nc3 {[%emt 0:00:08]} Qd6 {[%emt 0:00:06]} 4. d4 {[%emt 0:00:14]} Nf6 {[%emt 0:00:05]} 5. Nf3 {[%emt 0:01:38]} c6 {[%emt 0:00:13]} 6. Ne5 {[%emt 0:04:45]} Nbd7 {[%emt 0:00:11]} 7. Bf4 {[%emt 0:09:25]} Nd5 {[%emt 0:00:15]} 8. Nxd5 {[%emt 0:01:44]} Qxd5 {[%emt 0:02:28]} 9. Be2 {[%emt 0:09:40]} Nxe5 {[%emt 0:01:18]} 10. Bxe5 {[%emt 0:00:47]} f6 {[%emt 0:13:13]} 11. Bg3 {[%emt 0:04:33]} Bh3 {[%emt 0:01:47]} 12. Bf3 {[%emt 0:09:17]} Qe6+ {[%emt 0:00:32]} 13. Qe2 {[%emt 0:06:30]} Qxe2+ {[%emt 0:01:30]} 14. Kxe2 {[%emt 0:00:06]} Bf5 {[%emt 0:00:47]} 15. c4 {[%emt 0:05:53]} e6 {[%emt 0:01:04]} 16. Rhd1 {[%emt 0:05:58]} Rd8 {[%emt 0:03:03]} 17. Rac1 {[%emt 0:02:31]} Bd6 {[%emt 0:02:51]} 18. Ke3 {[%emt 0:00:50]} Kf7 {[%emt 0:01:15]} 19. Bxd6 {[%emt 0:03:01]} Rxd6 {[%emt 0:00:03]} 20. b4 {[%emt 0:00:10]} Rhd8 {[%emt 0:02:50]} 21. a4 {[%emt 0:02:19]} e5 {[%emt 0:09:30]} 22. d5 {[%emt 0:03:00]} cxd5 {[%emt 0:01:20]} 23. Rxd5 {[%emt 0:01:09]} Rxd5 {[%emt 0:01:34]} 24. Bxd5+ {[%emt 0:00:28]} Be6 {[%emt 0:00:47]} 25. a5 {[%emt 0:04:26]} b6 {[%emt 0:10:37]} 26. axb6 {[%emt 0:00:17]} axb6 {[%emt 0:00:01]} 27. Ke4 {[%emt 0:00:24]} b5 {[%emt 0:01:53]} 28. Rd1 {[%emt 0:03:33]} Ke7 {[%emt 0:02:59]} 29. c5 {[%emt 0:05:44]} Rd7 {[%emt 0:11:05]} 30. f3 {[%emt 0:03:24]} h5 {[%emt 0:07:21]} 31. h4 {[%emt 0:01:14]} g6 {[%emt 0:03:43]} 32. g3 {[%emt 0:08:11]} Kd8 {[%emt 0:01:24]} 33. f4 {[%emt 0:01:13]} exf4 {[%emt 0:01:26]} 34. gxf4 {[%emt 0:00:01]} Kc7 {[%emt 0:02:13]} 35. Rd4 {[%emt 0:00:14]} Bf5+ {[%emt 0:04:09]} 36. Ke3 {[%emt 0:00:12]} Re7+ {[%emt 0:00:18]} 37. Kf2 {[%emt 0:00:37]} Rd7 {[%emt 0:00:44]} 38. Ke3 {[%emt 0:00:53]} Re7+ {[%emt 0:00:04]} 39. Be4 {[%emt 0:03:07]} Bd7 {[%emt 0:05:27]} 40. Kd2 {[%emt 0:01:21]} Rg7 {[%emt 0:02:19]} 41. Rd6 {[%emt 0:07:54]} g5 {[%emt 0:00:08]} 42. hxg5 {[%emt 0:00:51]} fxg5 {[%emt 0:00:01]} 43. f5 {[%emt 0:01:20]} Rf7 {[%emt 0:04:39]} 44. f6 {[%emt 0:00:18]} h4 {[%emt 0:00:07]} 45. Bd5 {[%emt 0:00:52]} Rf8 {[%emt 0:00:04]} 46. f7 {[%emt 0:00:33]} g4 {[%emt 0:00:04]} 47. Rg6 {[%emt 0:02:35]} Kd8 {[%emt 0:00:34]} 48. c6 {[%emt 0:01:27]} Bc8 {[%emt 0:00:50]} 49. Ke3 {[%emt 0:01:19]} h3 {[%emt 0:00:25]} 50. Kf2 {[%emt 0:03:19]} Ke7 {[%emt 0:00:43]} 51. Kg3 {[%emt 0:01:10]} Bf5 {[%emt 0:01:26]} 52. Rg5 {[%emt 0:03:14]} Be6 {[%emt 0:01:13]} 53. Bxe6 {[%emt 0:01:15]} Kxe6 {[%emt 0:00:03]} 54. c7 {[%emt 0:00:05]} h2 {[%emt 0:01:34]} 55. Kxh2 {[%emt 0:00:36]} Rh8+ {[%emt 0:00:08]} 56. Kg3 {[%emt 0:00:56]} Kxf7 {[%emt 0:00:36]} 57. Rxb5 {[%emt 0:00:09]} Rc8 {[%emt 0:00:00]} 58. Rb7 {[%emt 0:01:04]} Ke6 {[%emt 0:00:41]} 59. b5 {[%emt 0:00:02]} Kd7 {[%emt 0:00:10]} 60. b6 {[%emt 0:00:02]} Rf8 {[%emt 0:00:06]} 61. Rb8 {[%emt 0:00:13]} 1-0

[Event "CZE-tht Extraliga 2018-19"]
[Site "Czech Republic"]
[Date "2019.02.10"]
[Round "8.5"]
[White "Kuba, Jindrich"]
[Black "Roubalik, Jakub"]
[Result "1/2-1/2"]
[ECO "C88"]
[WhiteElo "2310"]
[BlackElo "2412"]
[Annotator "NA"]
[PlyCount "104"]
[EventDate "2018.11.03"]
[EventType "team-tourn"]
[EventCountry "CZE"]
[SourceTitle "playchess.com"]
[Source "ChessBase"]
[SourceQuality "1"]
[WhiteTeam "Siesta B"]
[BlackTeam "Duras"]
[TimeControl "40/5400+30:1800+30"]

1. e4 {[%emt 0:00:00]} e5 {[%emt 0:01:35]} 2. Nf3 {[%emt 0:00:00]} Nc6 {[%emt 0:00:05]} 3. Bb5 {[%emt 0:00:00]} a6 {[%emt 0:00:05]} 4. Ba4 {[%emt 0:00:00]} Nf6 {[%emt 0:00:06]} 5. O-O {[%emt 0:00:46]} Be7 {[%emt 0:00:10]} 6. Re1 {[%emt 0:00:55]} b5 {[%emt 0:00:06]} 7. Bb3 {[%emt 0:00:04]} O-O {[%emt 0:00:24]} 8. d3 {[%emt 0:04:04]} d6 {[%emt 0:07:44]} 9. h3 {[%emt 0:00:06]} Na5 {[%emt 0:01:26]} 10. Nbd2 {[%emt 0:00:07]} Nxb3 {[%emt 0:02:27]} 11. axb3 {[%emt 0:00:08]} Re8 {[%emt 0:01:17]} 12. Nf1 {[%emt 0:00:05]} Bf8 {[%emt 0:00:32]} 13. c4 {[%emt 0:00:59]} Bb7 {[%emt 0:06:18]} 14. Bg5 {[%emt 0:00:51]} h6 {[%emt 0:20:22]} 15. Bd2 {[%emt 0:02:45]} g6 {[%emt 0:01:31]} 16. Qc1 {[%emt 0:01:41]} Kh7 {[%emt 0:02:08]} 17. Ng3 {[%emt 0:03:02]} Qd7 {[%emt 0:04:46]} 18. Nh4 {[%emt 0:05:00]} Qd8 {[%emt 0:05:06]} 19. Nf3 {[%emt 0:02:06]} Nd7 {[%emt 0:01:45]} 20. Nh2 {[%emt 0:00:24]} Nc5 {[%emt 0:01:08]} 21. Qc2 {[%emt 0:00:04]} Ne6 {[%emt 0:02:45]} 22. Ne2 {[%emt 0:15:19]} Bg7 {[%emt 0:04:20]} 23. Ra5 {[%emt 0:09:56]} c6 {[%emt 0:05:10]} 24. Ra3 {[%emt 0:02:28]} a5 {[%emt 0:15:09]} 25. Rea1 {[%emt 0:02:00]} b4 {[%emt 0:00:11]} 26. R3a2 {[%emt 0:00:01]} d5 {[%emt 0:03:16]} 27. Nf1 {[%emt 0:06:08]} dxe4 {[%emt 0:05:20]} 28. dxe4 {[%emt 0:00:05]} c5 {[%emt 0:00:32]} 29. Nfg3 {[%emt 0:03:44]} Bc6 {[%emt 0:03:07]} 30. f3 {[%emt 0:04:49]} Kg8 {[%emt 0:02:32]} 31. Nf1 {[%emt 0:03:08]} Nd4 {[%emt 0:01:09]} 32. Nxd4 {[%emt 0:00:23]} cxd4 {[%emt 0:00:09]} 33. Qd3 {[%emt 0:00:30]} Rf8 {[%emt 0:00:25]} 34. Ng3 {[%emt 0:00:48]} h5 {[%emt 0:00:37]} 35. Nh1 {[%emt 0:03:29]} Qb6 {[%emt 0:01:48]} 36. Nf2 {[%emt 0:00:23]} f5 {[%emt 0:01:31]} 37. Re1 {[%emt 0:01:28]} Qc5 {[%emt 0:00:40]} 38. Kh2 {[%emt 0:02:00]} Rf7 {[%emt 0:00:26]} 39. Qc2 {[%emt 0:03:25]} Qb6 {[%emt 0:00:40]} 40. Qd3 {[%emt 0:01:33]} Qc5 {[%emt 0:00:13]} 41. Rea1 {[%emt 0:31:41]} Qb6 {[%emt 0:10:53]} 42. Re1 {[%emt 0:00:00]} Qc5 {[%emt 0:13:27]} 43. Rea1 {[%emt 0:00:00]} Bf8 {[%emt 0:00:33]} 44. Bg5 {[%emt 0:00:00]} Bd6 {[%emt 0:01:04]} 45. Kh1 {[%emt 0:00:00]} Bc7 {[%emt 0:00:46]} 46. Rg1 {[%emt 0:00:00]} Qb6 {[%emt 0:01:09]} 47. Raa1 {[%emt 0:00:00]} Qb7 {[%emt 0:00:17]} 48. Rae1 {[%emt 0:00:00]} Raf8 {[%emt 0:01:46]} 49. Bh6 {[%emt 0:00:00]} Rd8 {[%emt 0:00:46]} 50. Bg5 {[%emt 0:00:00]} Rdf8 {[%emt 0:01:26]} 51. Bh6 {[%emt 0:00:00]} Rd8 {[%emt 0:01:25]} 52. Bg5 {[%emt 0:00:00]} Re8 1/2-1/2

[Event "CZE-tht Extraliga 2018-19"]
[Site "Czech Republic"]
[Date "2019.02.10"]
[Round "8.5"]
[White "Skalsky, Alexandr"]
[Black "Jaracz, Pawel"]
[Result "1/2-1/2"]
[ECO "B13"]
[WhiteElo "2102"]
[BlackElo "2464"]
[Annotator "ChessBase"]
[PlyCount "62"]
[EventDate "2018.11.03"]
[EventType "team-tourn"]
[EventCountry "CZE"]
[SourceTitle "playchess.com"]
[Source "ChessBase"]
[SourceQuality "1"]
[WhiteTeam "Ostrava"]
[BlackTeam "Turnov"]
[TimeControl "40/5400+30:1800+30"]

1. e4 {[%emt 0:00:00]} c6 {[%emt 0:00:00]} 2. d4 {[%emt 0:00:00]} d5 {[%emt 0:00:00]} 3. exd5 {[%emt 0:00:00]} cxd5 {[%emt 0:00:00]} 4. Bd3 {[%emt 0:00:00]} Nc6 {[%emt 0:00:27]} 5. c3 {[%emt 0:00:02]} Qc7 {[%emt 0:02:01]} 6. Ne2 {[%emt 0:02:18]} Bg4 {[%emt 0:00:48]} 7. O-O {[%emt 0:03:48]} e6 {[%emt 0:03:17]} 8. Qe1 {[%emt 0:13:07]} Bxe2 {[%emt 0:15:36]} 9. Qxe2 {[%emt 0:00:10]} Bd6 {[%emt 0:00:18]} 10. h3 {[%emt 0:19:25]} Nf6 {[%emt 0:06:10]} 11. Nd2 {[%emt 0:04:53]} O-O {[%emt 0:06:04]} 12. Nf3 {[%emt 0:11:34]} Rfe8 {[%emt 0:13:08]} 13. Be3 {[%emt 0:01:43]} a6 {[%emt 0:00:53]} 14. Rad1 {[%emt 0:13:20]} b5 {[%emt 0:03:00]} 15. a3 {[%emt 0:00:17]} Na5 {[%emt 0:00:51]} 16. g4 {[%emt 0:09:37]} Nc4 {[%emt 0:00:42]} 17. Bg5 {[%emt 0:03:05]} Nd7 {[%emt 0:02:21]} 18. Bc1 {[%emt 0:02:15]} Bf4 {[%emt 0:01:13]} 19. Bxc4 {[%emt 0:08:41]} bxc4 {[%emt 0:02:46]} 20. Bxf4 {[%emt 0:01:30]} Qxf4 {[%emt 0:00:11]} 21. Qe3 {[%emt 0:02:42]} Qxe3 {[%emt 0:08:05]} 22. fxe3 {[%emt 0:00:00]} Rab8 {[%emt 0:00:08]} 23. Rf2 {[%emt 0:00:06]} Rb7 {[%emt 0:02:28]} 24. e4 {[%emt 0:02:03]} Nf6 {[%emt 0:02:08]} 25. exd5 {[%emt 0:01:16]} exd5 {[%emt 0:00:05]} 26. Re1 {[%emt 0:00:16]} Rxe1+ {[%emt 0:03:39]} 27. Nxe1 {[%emt 0:00:01]} Ne4 {[%emt 0:00:05]} 28. Re2 {[%emt 0:00:35]} Kf8 {[%emt 0:05:58]} 29. Ng2 {[%emt 0:00:02]} Ng3 {[%emt 0:00:58]} 30. Re3 {[%emt 0:00:16]} Ne4 {[%emt 0:00:05]} 31. Re2 {[%emt 0:00:06]} Ng3 {[%emt 0:00:45]} 1/2-1/2

[Event "CZE-tht Extraliga 2018-19"]
[Site "Czech Republic"]
[Date "2019.02.10"]
[Round "8.6"]
[White "Vlasak, Lukas"]
[Black "Richterova, Natasa"]
[Result "1-0"]
[ECO "D00"]
[WhiteElo "2416"]
[BlackElo "2216"]
[Annotator "NA"]
[PlyCount "111"]
[EventDate "2018.11.03"]
[EventType "team-tourn"]
[EventCountry "CZE"]
[SourceTitle "playchess.com"]
[Source "ChessBase"]
[SourceQuality "1"]
[WhiteTeam "Turnov"]
[BlackTeam "Ostrava"]
[TimeControl "40/5400+30:1800+30"]

1. d4 {[%emt 0:00:00]} d5 {[%emt 0:00:06]} 2. Bf4 {[%emt 0:00:00]} Nf6 {[%emt 0:00:33]} 3. e3 {[%emt 0:00:00]} c5 {[%emt 0:00:29]} 4. Nf3 {[%emt 0:05:53]} Nc6 {[%emt 0:01:34]} 5. Nbd2 {[%emt 0:01:23]} e6 {[%emt 0:27:05]} 6. c3 {[%emt 0:02:31]} Be7 {[%emt 0:00:25]} 7. Bd3 {[%emt 0:02:42]} O-O {[%emt 0:01:48]} 8. Ne5 {[%emt 0:10:02]} Bd7 {[%emt 0:01:44]} 9. Qf3 {[%emt 0:15:18]} Nxe5 {[%emt 0:08:26]} 10. dxe5 {[%emt 0:01:17]} Ne8 {[%emt 0:00:13]} 11. Qh3 {[%emt 0:00:28]} g6 {[%emt 0:01:49]} 12. Nf3 {[%emt 0:00:53]} Ng7 {[%emt 0:10:38]} 13. Qh6 {[%emt 0:03:06]} f6 {[%emt 0:02:53]} 14. h4 {[%emt 0:07:16]} Nf5 {[%emt 0:11:22]} 15. Bxf5 {[%emt 0:02:00]} exf5 {[%emt 0:05:56]} 16. exf6 {[%emt 0:05:00]} Bxf6 {[%emt 0:00:31]} 17. Ng5 {[%emt 0:00:15]} Qe7 {[%emt 0:08:31]} 18. Bd6 {[%emt 0:00:26]} Qg7 {[%emt 0:00:07]} 19. Qxg7+ {[%emt 0:02:29]} Kxg7 {[%emt 0:01:00]} 20. Bxf8+ {[%emt 0:00:09]} Rxf8 {[%emt 0:00:11]} 21. O-O-O {[%emt 0:00:13]} d4 {[%emt 0:00:51]} 22. exd4 {[%emt 0:01:02]} cxd4 {[%emt 0:00:10]} 23. Nf3 {[%emt 0:00:31]} Kf7 {[%emt 0:06:05]} 24. Nxd4 {[%emt 0:00:52]} b5 {[%emt 0:00:36]} 25. Rhe1 {[%emt 0:01:31]} Rc8 {[%emt 0:00:38]} 26. Nf3 {[%emt 0:01:36]} Be8 {[%emt 0:01:33]} 27. Kb1 {[%emt 0:02:21]} h6 {[%emt 0:00:51]} 28. Rd6 {[%emt 0:00:16]} Be7 {[%emt 0:04:56]} 29. Ra6 {[%emt 0:02:38]} Bc5 {[%emt 0:01:52]} 30. h5 {[%emt 0:14:23]} gxh5 {[%emt 0:00:43]} 31. Rxh6 {[%emt 0:00:24]} Kg7 {[%emt 0:00:02]} 32. Rhe6 {[%emt 0:00:25]} Bf7 {[%emt 0:00:10]} 33. R6e2 {[%emt 0:00:30]} b4 {[%emt 0:00:09]} 34. Rc2 {[%emt 0:07:21]} b3 {[%emt 0:00:30]} 35. axb3 {[%emt 0:00:08]} Bxb3 {[%emt 0:00:03]} 36. Rd2 {[%emt 0:00:17]} Kf6 {[%emt 0:00:57]} 37. Nd4 {[%emt 0:00:47]} Bg8 {[%emt 0:01:25]} 38. f4 {[%emt 0:00:55]} Bd6 {[%emt 0:00:55]} 39. g3 {[%emt 0:00:14]} Bb8 {[%emt 0:00:19]} 40. Nf3 {[%emt 0:00:38]} a5 {[%emt 0:00:48]} 41. Ne5 {[%emt 0:33:04]} Be6 {[%emt 0:03:57]} 42. Rh2 {[%emt 0:00:00]} Rh8 {[%emt 0:02:45]} 43. Reh1 {[%emt 0:00:00]} Bxe5 {[%emt 0:01:15]} 44. fxe5+ {[%emt 0:00:00]} Kg5 {[%emt 0:01:29]} 45. Rh4 {[%emt 0:00:00]} Bd5 {[%emt 0:00:29]} 46. Re1 {[%emt 0:00:00]} Re8 {[%emt 0:02:18]} 47. Kc2 {[%emt 0:00:00]} Rb8 {[%emt 0:01:24]} 48. e6 {[%emt 0:00:00]} Re8 {[%emt 0:04:11]} 49. e7 {[%emt 0:00:00]} Kf6 {[%emt 0:02:07]} 50. c4 {[%emt 0:00:00]} Bf7 {[%emt 0:01:08]} 51. Rd4 {[%emt 0:00:00]} Rg8 {[%emt 0:02:43]} 52. Rd6+ {[%emt 0:00:00]} Kg7 {[%emt 0:00:58]} 53. c5 {[%emt 0:00:00]} Be8 {[%emt 0:01:12]} 54. c6 {[%emt 0:00:00]} Kf7 {[%emt 0:01:12]} 55. c7 {[%emt 0:00:00]} Rh8 {[%emt 0:00:59]} 56. Rd8 {[%emt 0:00:00]} 1-0

[Event "CZE-tht Extraliga 2018-19"]
[Site "Czech Republic"]
[Date "2019.02.10"]
[Round "8.6"]
[White "Neuman, Petr"]
[Black "Londyn, Radek"]
[Result "1/2-1/2"]
[ECO "A13"]
[WhiteElo "2404"]
[BlackElo "2399"]
[Annotator "NA"]
[PlyCount "232"]
[EventDate "2018.11.03"]
[EventType "team-tourn"]
[EventCountry "CZE"]
[SourceTitle "playchess.com"]
[Source "ChessBase"]
[SourceQuality "1"]
[WhiteTeam "Pardubice"]
[BlackTeam "Poruba"]
[TimeControl "40/5400+30:1800+30"]

1. c4 {[%emt 0:00:00]} e6 {[%emt 0:00:11]} 2. g3 {[%emt 0:00:00]} d5 {[%emt 0:00:12]} 3. Bg2 dxc4 {[%emt 0:01:27]} 4. Na3 {[%emt 0:01:27]} Bxa3 {[%emt 0:06:49]} 5. bxa3 {[%emt 0:00:13]} Nd7 {[%emt 0:01:56]} 6. Bb2 {[%emt 0:02:16]} Ngf6 {[%emt 0:00:17]} 7. Qa4 {[%emt 0:00:16]} b5 {[%emt 0:04:29]} 8. Qc2 {[%emt 0:00:29]} Rb8 {[%emt 0:01:00]} 9. a4 {[%emt 0:00:10]} Bb7 {[%emt 0:02:16]} 10. Bxb7 {[%emt 0:00:49]} Rxb7 {[%emt 0:00:02]} 11. axb5 {[%emt 0:00:11]} Rxb5 {[%emt 0:00:28]} 12. Nf3 {[%emt 0:00:39]} O-O {[%emt 0:02:19]} 13. O-O {[%emt 0:01:13]} e5 {[%emt 0:06:15]} 14. a4 {[%emt 0:02:52]} Rd5 {[%emt 0:00:31]} 15. e4 {[%emt 0:07:57]} Rd3 {[%emt 0:01:11]} 16. Ne1 {[%emt 0:00:55]} Rd6 {[%emt 0:00:44]} 17. Ba3 {[%emt 0:00:16]} c5 {[%emt 0:00:25]} 18. Ng2 {[%emt 0:05:12]} Qa5 {[%emt 0:15:24]} 19. Rfd1 {[%emt 0:00:53]} Rd8 {[%emt 0:00:21]} 20. Bb2 {[%emt 0:03:23]} Qb4 {[%emt 0:01:49]} 21. Ne3 {[%emt 0:03:49]} Qb3 {[%emt 0:01:39]} 22. Qxb3 {[%emt 0:02:57]} cxb3 {[%emt 0:00:03]} 23. f3 {[%emt 0:00:13]} Ra6 {[%emt 0:07:02]} 24. Kf2 {[%emt 0:03:18]} Ne8 {[%emt 0:03:24]} 25. Bc3 {[%emt 0:05:17]} Nd6 {[%emt 0:02:48]} 26. d3 {[%emt 0:03:53]} f6 {[%emt 0:00:24]} 27. Ke2 {[%emt 0:15:20]} Rb8 {[%emt 0:00:29]} 28. Bb2 {[%emt 0:00:33]} Kf7 {[%emt 0:05:30]} 29. Nd5 {[%emt 0:12:22]} Nb6 {[%emt 0:02:50]} 30. Nc3 {[%emt 0:00:26]} Nb7 {[%emt 0:06:45]} 31. Bc1 {[%emt 0:05:27]} Na5 {[%emt 0:03:39]} 32. Be3 {[%emt 0:01:45]} Nc6 {[%emt 0:01:25]} 33. a5 {[%emt 0:05:11]} Rxa5 {[%emt 0:00:25]} 34. Rxa5 {[%emt 0:00:17]} Nxa5 {[%emt 0:00:03]} 35. Ra1 {[%emt 0:00:21]} Nc6 {[%emt 0:00:26]} 36. Bxc5 {[%emt 0:00:24]} a5 {[%emt 0:03:11]} 37. Kd2 {[%emt 0:00:55]} b2 {[%emt 0:08:10]} 38. Rb1 {[%emt 0:00:56]} Nd4 {[%emt 0:00:09]} 39. Bxd4 {[%emt 0:02:18]} exd4 {[%emt 0:00:02]} 40. Nb5 {[%emt 0:00:42]} Na4 {[%emt 0:09:46]} 41. Nxd4 {[%emt 0:32:09]} Nc5 {[%emt 0:03:55]} 42. Kc3 {[%emt 0:00:00]} Rd8 {[%emt 0:02:54]} 43. Nc6 {[%emt 0:00:00]} Rc8 {[%emt 0:06:55]} 44. Nxa5 {[%emt 0:00:00]} Nxe4+ {[%emt 0:00:04]} 45. Kd4 {[%emt 0:00:00]} Nd2 {[%emt 0:00:26]} 46. Rxb2 {[%emt 0:00:00]} Nxf3+ {[%emt 0:00:12]} 47. Ke3 {[%emt 0:00:00]} Ne5 {[%emt 0:01:03]} 48. Nc4 {[%emt 0:00:00]} Nxc4+ {[%emt 0:00:33]} 49. dxc4 {[%emt 0:00:00]} Rxc4 {[%emt 0:00:03]} 50. h4 {[%emt 0:00:00]} h5 {[%emt 0:02:46]} 51. Rb5 {[%emt 0:00:00]} Kg6 {[%emt 0:00:15]} 52. Kf3 {[%emt 0:00:00]} Rg4 {[%emt 0:00:27]} 53. Rb6 {[%emt 0:00:00]} Kh7 {[%emt 0:00:37]} 54. Rb5 {[%emt 0:00:00]} Kh6 {[%emt 0:00:15]} 55. Rb6 {[%emt 0:00:00]} Ra4 {[%emt 0:01:08]} 56. Rc6 {[%emt 0:00:00]} Ra5 {[%emt 0:00:52]} 57. Rb6 {[%emt 0:00:00]} Rf5+ {[%emt 0:00:12]} 58. Kg2 {[%emt 0:00:00]} Kg6 {[%emt 0:00:45]} 59. Ra6 {[%emt 0:00:00]} Rc5 {[%emt 0:00:11]} 60. Ra7 {[%emt 0:00:00]} Rc3 {[%emt 0:00:15]} 61. Ra5 {[%emt 0:00:00]} Re3 {[%emt 0:02:32]} 62. Rb5 {[%emt 0:00:00]} Re5 {[%emt 0:00:42]} 63. Rb7 {[%emt 0:00:00]} Re6 {[%emt 0:00:56]} 64. Rb5 {[%emt 0:00:00]} Kh6 {[%emt 0:00:20]} 65. Rb8 {[%emt 0:00:00]} g6 {[%emt 0:01:31]} 66. Kf3 {[%emt 0:00:00]} Ra6 {[%emt 0:00:16]} 67. Rb4 {[%emt 0:00:00]} Ra3+ {[%emt 0:00:26]} 68. Kg2 {[%emt 0:00:00]} Ra7 {[%emt 0:00:31]} 69. Rb6 {[%emt 0:00:00]} Kg7 {[%emt 0:00:08]} 70. Kf3 {[%emt 0:00:00]} Ra3+ {[%emt 0:00:05]} 71. Kg2 {[%emt 0:00:00]} Ra4 {[%emt 0:00:06]} 72. Rb7+ {[%emt 0:00:00]} Kh6 {[%emt 0:00:02]} 73. Rf7 {[%emt 0:00:00]} f5 {[%emt 0:02:05]} 74. Kf2 {[%emt 0:00:00]} Ra8 {[%emt 0:00:16]} 75. Kf3 {[%emt 0:00:00]} Rg8 {[%emt 0:00:05]} 76. Rf6 {[%emt 0:00:00]} Kg7 {[%emt 0:00:21]} 77. Ra6 {[%emt 0:00:00]} Re8 {[%emt 0:00:06]} 78. Ra4 {[%emt 0:01:03]} Kf6 {[%emt 0:00:07]} 79. Rb4 {[%emt 0:00:30]} Re6 {[%emt 0:00:15]} 80. Ra4 {[%emt 0:02:10]} Ke5 {[%emt 0:00:16]} 81. Ra5+ {[%emt 0:00:33]} Kf6 {[%emt 0:00:15]} 82. Ra4 {[%emt 0:00:04]} Rd6 {[%emt 0:00:17]} 83. Kf4 {[%emt 0:00:21]} Rd3 {[%emt 0:00:58]} 84. Ra6+ {[%emt 0:00:32]} Kg7 {[%emt 0:00:03]} 85. Ra7+ {[%emt 0:00:18]} Kh6 {[%emt 0:00:17]} 86. Rf7 {[%emt 0:00:46]} Rd1 {[%emt 0:01:04]} 87. Kf3 {[%emt 0:00:20]} Rb1 {[%emt 0:01:36]} 88. Kf2 {[%emt 0:00:41]} Rb8 {[%emt 0:01:31]} 89. Kf3 {[%emt 0:00:05]} Rg8 {[%emt 0:00:03]} 90. Rf6 {[%emt 0:00:36]} Kg7 {[%emt 0:00:50]} 91. Ra6 {[%emt 0:00:05]} Re8 {[%emt 0:00:00]} 92. Ra4 {[%emt 0:00:05]} Kf7 {[%emt 0:00:09]} 93. Rb4 {[%emt 0:00:08]} Re6 {[%emt 0:00:29]} 94. Rc4 {[%emt 0:00:07]} Rd6 {[%emt 0:00:09]} 95. Ra4 {[%emt 0:00:09]} Ke6 {[%emt 0:00:19]} 96. Kf4 {[%emt 0:00:24]} Kf6 {[%emt 0:02:18]} 97. Rb4 {[%emt 0:00:17]} Ra6 {[%emt 0:01:03]} 98. Rc4 {[%emt 0:00:11]} Ra3 {[%emt 0:03:04]} 99. Rc6+ {[%emt 0:00:12]} Kg7 {[%emt 0:00:02]} 100. Rc7+ {[%emt 0:00:05]} Kh6 {[%emt 0:00:06]} 101. Rf7 {[%emt 0:00:34]} Ra4+ {[%emt 0:00:11]} 102. Ke3 {[%emt 0:00:09]} Ra5 {[%emt 0:00:48]} 103. Kf4 {[%emt 0:00:22]} Ra3 {[%emt 0:00:10]} 104. Rb7 {[%emt 0:00:20]} Ra4+ {[%emt 0:00:36]} 105. Kf3 {[%emt 0:00:08]} Ra8 {[%emt 0:05:33]} 106. Rf7 {[%emt 0:00:06]} Ra6 {[%emt 0:00:42]} 107. Kf4 {[%emt 0:00:58]} Re6 {[%emt 0:01:40]} 108. Ra7 {[%emt 0:01:24]} Re1 {[%emt 0:03:17]} 109. Rf7 {[%emt 0:00:23]} Re4+ {[%emt 0:00:32]} 110. Kf3 {[%emt 0:00:11]} Rg4 {[%emt 0:00:10]} 111. Kf2 {[%emt 0:00:50]} f4 {[%emt 0:02:17]} 112. Rxf4 {[%emt 0:00:26]} Rxf4+ {[%emt 0:00:12]} 113. gxf4 {[%emt 0:00:02]} Kg7 {[%emt 0:00:08]} 114. Ke3 {[%emt 0:00:15]} Kf6 {[%emt 0:00:06]} 115. Ke4 {[%emt 0:00:15]} Ke6 {[%emt 0:00:08]} 116. Ke3 {[%emt 0:00:04]} Kf6 {[%emt 0:00:07]} 1/2-1/2

[Event "CZE-tht Extraliga 2018-19"]
[Site "Czech Republic"]
[Date "2019.02.10"]
[Round "8.6"]
[White "Wiewiora, Eneasz"]
[Black "Simek, Petr"]
[Result "1-0"]
[ECO "C55"]
[WhiteElo "2354"]
[BlackElo "2319"]
[Annotator "NA"]
[PlyCount "79"]
[EventDate "2018.11.03"]
[EventType "team-tourn"]
[EventCountry "CZE"]
[SourceTitle "playchess.com"]
[Source "ChessBase"]
[SourceQuality "1"]
[WhiteTeam "Cesky Tesin"]
[BlackTeam "Siesta"]
[TimeControl "40/5400+30:1800+30"]

1. e4 {[%emt 0:00:00]} e5 {[%emt 0:00:00]} 2. Nf3 {[%emt 0:00:00]} Nc6 {[%emt 0:00:00]} 3. Bc4 {[%emt 0:00:28]} Nf6 {[%emt 0:00:00]} 4. d3 {[%emt 0:01:45]} Be7 {[%emt 0:00:00]} 5. O-O {[%emt 0:00:06]} O-O {[%emt 0:00:01]} 6. Re1 {[%emt 0:03:12]} d6 {[%emt 0:00:08]} 7. c3 {[%emt 0:00:22]} Na5 {[%emt 0:01:12]} 8. Bb5 {[%emt 0:01:03]} a6 {[%emt 0:00:10]} 9. Ba4 {[%emt 0:00:02]} c5 {[%emt 0:00:13]} 10. Nbd2 {[%emt 0:00:10]} Qc7 {[%emt 0:04:05]} 11. h3 {[%emt 0:00:24]} h6 {[%emt 0:15:53]} 12. Nf1 {[%emt 0:08:57]} Rd8 {[%emt 0:02:33]} 13. Ng3 {[%emt 0:06:49]} Bd7 {[%emt 0:04:54]} 14. Bxd7 {[%emt 0:09:31]} Rxd7 {[%emt 0:01:09]} 15. c4 {[%emt 0:22:46]} b5 {[%emt 0:02:03]} 16. b3 {[%emt 0:05:17]} Nc6 {[%emt 0:00:34]} 17. Nf5 {[%emt 0:00:20]} Bf8 {[%emt 0:00:31]} 18. g4 {[%emt 0:00:01]} Nh7 {[%emt 0:06:19]} 19. h4 {[%emt 0:01:26]} Nd8 {[%emt 0:15:15]} 20. Be3 {[%emt 0:14:20]} Ne6 {[%emt 0:01:24]} 21. Kh2 {[%emt 0:01:14]} Kh8 {[%emt 0:02:31]} 22. Rg1 {[%emt 0:02:27]} Qc6 {[%emt 0:02:55]} 23. g5 {[%emt 0:07:57]} hxg5 {[%emt 0:03:27]} 24. Nxg5 {[%emt 0:00:13]} Nexg5 {[%emt 0:00:27]} 25. Bxg5 {[%emt 0:01:47]} bxc4 {[%emt 0:02:49]} 26. bxc4 {[%emt 0:00:08]} Rb7 {[%emt 0:00:05]} 27. h5 {[%emt 0:01:13]} Qe8 {[%emt 0:08:59]} 28. Qg4 {[%emt 0:02:05]} Nxg5 {[%emt 0:00:31]} 29. Qxg5 {[%emt 0:00:02]} Qd8 {[%emt 0:00:08]} 30. Qg4 {[%emt 0:01:20]} Qf6 {[%emt 0:00:13]} 31. Rg3 {[%emt 0:00:04]} Rb2 {[%emt 0:04:48]} 32. Rf3 {[%emt 0:00:01]} Rab8 {[%emt 0:00:05]} 33. Rg1 {[%emt 0:05:03]} Rxa2 {[%emt 0:04:10]} 34. Rg2 {[%emt 0:00:01]} Kh7 {[%emt 0:00:07]} 35. h6 {[%emt 0:03:33]} g6 {[%emt 0:01:02]} 36. Nd4 {[%emt 0:01:55]} Qxf3 {[%emt 0:09:09]} 37. Nxf3 {[%emt 0:00:01]} Bxh6 {[%emt 0:00:08]} 38. Ng5+ {[%emt 0:00:37]} Kg7 {[%emt 0:00:06]} 39. Nxf7 {[%emt 0:01:33]} Bf4+ {[%emt 0:00:11]} 40. Kh3 {[%emt 0:00:36]} 1-0